fUST/lending_fUST_20250310
["ID","MTS","AMOUNT","RATE_DAILY","PERIOD"]
[355822391,1741619443203,-3369.045814,0.00043403,2]
[355822392,1741619443230,-363.68581201,0.00043403,2]
[355822413,1741619446306,-8529.94376365,0.00043403,2]
[355822414,1741619446317,-39.53458216,0.00043403,2]
[355822415,1741619446332,-377.13208451,0.00043403,2]
[355822416,1741619446342,-401.4657185,0.00043409,31]
[355822417,1741619446352,-500.0,0.00043409,2]
[355822418,1741619446363,-500.0,0.00043409,31]
[355822419,1741619446373,-500.0,0.00043409,2]
[355822420,1741619446382,-500.0,0.00043409,31]
[355822421,1741619446392,-500.0,0.00043409,31]
[355822422,1741619446404,-500.0,0.00043409,2]
[355822423,1741619446414,-500.0,0.00043409,2]
[355822424,1741619446424,-500.0,0.00043409,31]
[355822425,1741619446434,-588.71012673,0.00043409,31]
[355822426,1741619446444,-500.0,0.00043409,2]
[355822427,1741619446453,-500.0,0.00043409,31]
[355822428,1741619446463,-500.0,0.00043409,2]
[355822429,1741619446474,-500.0,0.00043409,2]
[355822430,1741619446484,-500.0,0.00043409,31]
[355822431,1741619446494,-576.07567748,0.00043409,31]
[355822432,1741619446504,-500.0,0.00043409,2]
[355822433,1741619446515,-500.0,0.00043409,2]
[355822435,1741619446525,-500.0,0.00043409,31]
[355822437,1741619446535,-500.0,0.00043409,2]
[355822439,1741619446546,-500.0,0.00043409,2]
[355822440,1741619446556,-500.0,0.00043409,2]
[355822441,1741619446566,-500.0,0.00043409,2]
[355822442,1741619446576,-500.0,0.00043409,2]
[355822444,1741619446585,-500.0,0.00043409,2]
[355822445,1741619446595,-500.0,0.00043409,2]
[355822446,1741619446605,-558.4941004,0.00043409,2]
[355822447,1741619446615,-500.0,0.00043409,2]
[355822448,1741619446625,-500.0,0.00043409,2]
[355822449,1741619446635,-500.0,0.00043409,2]
[355822450,1741619446646,-500.0,0.00043409,2]
[355822451,1741619446656,-500.0,0.00043409,2]
[355822452,1741619446666,-500.0,0.00043409,2]
[355822453,1741619446676,-336.49181677,0.00043409,2]
[355822454,1741619446686,-500.0,0.00043409,2]
[355822455,1741619446696,-500.0,0.00043409,2]
[355822456,1741619446707,-287.63445852,0.00043409,31]
[355822457,1741619446719,-775.14098548,0.00043562,120]
[355822458,1741619446729,-1149.57941029,0.00045,2]
[355822459,1741619446739,-3239.06609047,0.00046,120]
[355822460,1741619446750,-3000.0,0.00046575,10]
[355822461,1741619446761,-200.47174123,0.0004745,2]
[355822462,1741619446773,-207.03581178,0.00048,120]
[355822463,1741619446783,-1000.0,0.00048,120]
[355822464,1741619446794,-267.0,0.00048,90]
[355822465,1741619446805,-158.713958,0.00048527,2]
[355822466,1741619446816,-366.95,0.0004879,30]
[355822467,1741619446827,-2801.91456052,0.0004879,4]
[355822468,1741619446838,-572.93,0.0004879,30]
[355822469,1741619446849,-477.44,0.0004879,30]
[355822470,1741619446859,-397.87,0.0004879,30]
[355822471,1741619446868,-331.56,0.0004879,30]
[355822472,1741619446880,-276.3,0.0004879,30]
[355822473,1741619446891,-230.25,0.0004879,30]
[355822474,1741619446902,-191.87,0.0004879,30]
[355822475,1741619446912,-159.9,0.0004879,30]
[355822476,1741619446923,-799.5,0.0004879,30]
[355822477,1741619446934,-26906.42598646,0.000488,8]
[355822478,1741619446948,-1592.180368,0.000488,8]
[355822479,1741619446960,-1427.23342519,0.000488,8]
[355822480,1741619446979,-1578.84400001,0.000488,8]
[355822481,1741619452455,-1000.0,0.00048799,2]
[355822482,1741619452468,-836.82785605,0.00048799,2]
[355822483,1741619452478,-15201.1295943,0.000488,8]
[355822484,1741619452491,-474.05970206,0.000488,8]
[355822487,1741619514693,233.0,0.0003,3]
[355822490,1741620035471,200.0,0.00027,120]
[355822491,1741620037560,251.48383,0.00029,120]
[355822493,1741620254964,1856.0,0.00025204,2]
[355822507,1741620521008,4452.74,0.0003,3]
[355822508,1741620524890,10000.0,0.0003,3]
[355822516,1741620574111,-200.0,0.000323,120]
[355822517,1741620574133,-829.93937814,0.000349,2]
[355822518,1741620574156,-200.97825,0.00035,5]
[355822519,1741620574177,-1716.35519368,0.00036,30]
[355822539,1741620632493,-856.68734582,0.00036,30]
[355822542,1741620632504,-579.96145611,0.00037123,2]
[355822545,1741620632514,-424.2300918,0.00037243,2]
[355822548,1741620632524,-169.61,0.00037258,2]
[355822550,1741620632533,-400.0,0.00037267,2]
[355822552,1741620632544,-24900.0,0.00037268,2]
[355822554,1741620632554,-364.93809,0.000376,120]
[355822557,1741620632564,-169.61,0.0003778,2]
[355822560,1741620632573,-462.48854781,0.000378,107]
[355822563,1741620632584,-152.96589973,0.00039951,10]
[355822566,1741620632594,-462.48854778,0.00041086,120]
[355822568,1741620632603,-169.61,0.00041092,2]
[355822570,1741620632613,-160.77563916,0.00041096,2]
[355822572,1741620632622,-313.61354489,0.00041103,2]
[355822574,1741620632632,-169.61,0.00041406,2]
[355822576,1741620632641,-160.0,0.00041415,2]
[355822578,1741620632651,-3369.045814,0.00041416,2]
[355822580,1741620632661,-416.66666667,0.00041416,2]
[355822582,1741620632672,-169.61,0.00041425,2]
[355822585,1741620632682,-169.61,0.00041425,2]
[355822587,1741620632692,-169.61,0.00041425,2]
[355822588,1741620632705,-500.0,0.000415,10]
[355822591,1741620632714,-500.0,0.000415,10]
[355822593,1741620632724,-169.61,0.00041789,2]
[355822595,1741620632735,-150.66999787,0.000418,62]
[355822596,1741620632745,-1840.99485645,0.00042,120]
[355822599,1741620632755,-169.61,0.00042876,2]
[355822601,1741620632764,-2299.0,0.00042886,120]
[355822603,1741620632776,-190.63742788,0.00042899,28]
[355822651,1741620635055,200.0,0.00027,120]
[355822665,1741620638306,-200.0,0.000323,120]
[355822666,1741620638316,-395.48361499,0.00037267,15]
[355822667,1741620638327,-500.0,0.00037267,2]
[355822668,1741620638337,-500.0,0.00037267,2]
[355822669,1741620638347,-500.0,0.00037267,15]
[355822670,1741620638368,-500.0,0.00037267,15]
[355822671,1741620638381,-155.98213326,0.00037267,15]
[355822672,1741620638392,-500.0,0.00037267,2]
[355822673,1741620638403,-500.0,0.00037267,2]
[355822674,1741620638413,-500.0,0.00037267,2]
[355822675,1741620638427,-500.0,0.00037267,2]
[355822676,1741620638437,-500.0,0.00037267,2]
[355822677,1741620638447,-500.0,0.00037267,2]
[355822678,1741620638458,-500.0,0.00037267,2]
[355822679,1741620638468,-500.0,0.00037267,2]
[355822680,1741620638478,-500.0,0.00037267,2]
[355822681,1741620638488,-500.0,0.00037267,2]
[355822682,1741620638498,-500.0,0.00037267,2]
[355822683,1741620638508,-485.33686265,0.00037267,2]
[355822684,1741620638518,-298.62452486,0.00037267,2]
[355822685,1741620638528,-200.0,0.000376,120]
[355822686,1741620638538,-309.36257212,0.00042899,28]
[355822687,1741620638548,-381.38842,0.000429,120]
[355822688,1741620638558,-170.39739824,0.00043562,120]
[355822689,1741620638568,-169.61,0.00044361,2]
[355822690,1741620638578,-462.48854778,0.00044371,120]
[355822691,1741620638588,-500.0,0.0004525,7]
[355822692,1741620638599,-331.97161883,0.00045718,10]
[355822693,1741620638609,-500.0,0.00045718,10]
[355822694,1741620638620,-500.0,0.00045718,10]
[355822695,1741620638630,-500.0,0.00045718,10]
[355822696,1741620638640,-500.0,0.00045718,10]
[355822697,1741620638650,-228.00643728,0.00045789,120]
[355822698,1741620638660,-569.62,0.0004579,30]
[355822699,1741620638671,-2654.77,0.0004579,10]
[355822700,1741620638681,-10436.44,0.0004579,30]
[355822701,1741620638691,-8697.04,0.0004579,30]
[355822702,1741620638703,-1843.59,0.0004579,10]
[355822703,1741620638714,-414.5,0.00045799,7]
[355822704,1741620638724,-414.5,0.00045799,7]
[355822705,1741620638735,-414.5,0.00045799,7]
[355822706,1741620638745,-414.5,0.00045799,7]
[355822707,1741620638755,-414.5,0.00045799,7]
[355822708,1741620638765,-414.5,0.00045799,7]
[355822709,1741620638775,-414.5,0.00045799,7]
[355822710,1741620638786,-10069.30205564,0.00045799,47]
[355822711,1741620638796,-78613.8459709,0.000458,36]
[355822712,1741620638807,-100000.0,0.000458,120]
[355822713,1741620638817,-310.96666176,0.00045842,10]
[355822714,1741620638827,-1576.61453931,0.00046,2]
[355822715,1741620638838,-2036.53070605,0.00046,120]
[355822716,1741620638848,-1058.77897485,0.000464,2]
[355822717,1741620638859,-10598.9448382,0.0004645,4]
[355822718,1741620638870,-515.37664756,0.0004645,4]
[355822719,1741620638881,-21197.8896764,0.00046469,4]
[355822720,1741620638891,-1030.75329512,0.00046469,4]
[355822721,1741620638902,-151.0,0.0004647,120]
[355822722,1741620638912,-151.0,0.0004647,120]
[355822723,1741620638924,-151.0,0.0004647,120]
[355822724,1741620638934,-500.0,0.00046473,10]
[355822725,1741620638944,-276.68914,0.00046479,120]
[355822726,1741620638954,-151.0,0.0004648,120]
[355822727,1741620638963,-263.296551,0.0004648,120]
[355822728,1741620638973,-263.296551,0.0004648,120]
[355822729,1741620638989,-151.0,0.0004648,120]
[355822730,1741620639000,-211.15618,0.0004648,120]
[355822731,1741620639010,-31796.8345146,0.00046489,4]
[355822732,1741620639021,-1546.12994268,0.00046489,4]
[355822733,1741620639031,-208.01627,0.0004649,120]
[355822734,1741620639042,-208.01627,0.0004649,120]
[355822735,1741620639053,-151.0,0.0004649,120]
[355822736,1741620639064,-151.0,0.0004649,110]
[355822737,1741620639078,-151.0,0.0004649,110]
[355822738,1741620639089,-151.0,0.0004649,120]
[355822739,1741620639100,-151.0,0.0004649,120]
[355822740,1741620639111,-206.837105,0.0004649,120]
[355822741,1741620639121,-206.837105,0.0004649,120]
[355822742,1741620639131,-206.837105,0.0004649,120]
[355822743,1741620639141,-206.837105,0.0004649,120]
[355822744,1741620639152,-151.0,0.0004649,120]
[355822745,1741620639163,-151.0,0.0004649,120]
[355822746,1741620639175,-151.0,0.0004649,120]
[355822747,1741620639186,-151.0,0.0004649,120]
[355822748,1741620639197,-297.421832,0.0004649,120]
[355822749,1741620639207,-151.0,0.0004649,120]
[355822750,1741620639217,-457.453523,0.0004649,120]
[355822751,1741620639227,-151.0,0.0004649,120]
[355822752,1741620639237,-151.0,0.0004649,120]
[355822753,1741620639247,-151.0,0.0004649,120]
[355822754,1741620639258,-277.989263,0.0004649,120]
[355822755,1741620639268,-457.453523,0.0004649,120]
[355822756,1741620639279,-151.0,0.0004649,120]
[355822757,1741620639289,-156.578511,0.0004649,120]
[355822758,1741620639299,-151.0,0.0004649,120]
[355822759,1741620639309,-151.0,0.0004649,120]
[355822760,1741620639320,-2521.843251,0.0004649,120]
[355822761,1741620639330,-2521.843251,0.0004649,120]
[355822762,1741620639340,-52994.724191,0.0004649,4]
[355822763,1741620639350,-2576.8832378,0.0004649,4]
[355822764,1741620639360,-151.0,0.0004649,120]
[355822765,1741620639371,-263.296551,0.0004649,120]
[355822766,1741620639382,-263.296551,0.0004649,120]
[355822767,1741620639391,-151.0,0.0004649,120]
[355822768,1741620639402,-199.723795,0.0004649,120]
[355822769,1741620639412,-199.723795,0.0004649,120]
[355822770,1741620639424,-152082.39795398,0.00046499,2]
[355822771,1741620639435,-263.296551,0.00046499,120]
[355822772,1741620639446,-263.296551,0.00046499,120]
[355822773,1741620639456,-5000.0,0.000465,120]
[355822774,1741620639466,-200000.0,0.000465,30]
[355822775,1741620639476,-208.01627,0.000465,120]
[355822776,1741620639487,-208.01627,0.000465,120]
[355822777,1741620639498,-208.01627,0.000465,120]
[355822778,1741620639508,-208.01627,0.000465,120]
[355822779,1741620639518,-151.0,0.000465,120]
[355822780,1741620639528,-151.0,0.000465,120]
[355822781,1741620639539,-151.0,0.000465,110]
[355822782,1741620639550,-151.0,0.000465,110]
[355822783,1741620639560,-201.49244,0.000465,110]
[355822784,1741620639570,-151.0,0.000465,120]
[355822785,1741620639581,-151.0,0.000465,120]
[355822786,1741620639592,-206.837105,0.000465,120]
[355822787,1741620639602,-206.837105,0.000465,120]
[355822788,1741620639612,-151.0,0.000465,120]
[355822789,1741620639622,-151.0,0.000465,120]
[355822790,1741620639633,-151.0,0.000465,120]
[355822791,1741620639643,-457.453523,0.000465,120]
[355822792,1741620639653,-457.453523,0.000465,120]
[355822793,1741620639664,-151.0,0.000465,120]
[355822794,1741620639677,-457.453523,0.000465,120]
[355822796,1741620639688,-457.453523,0.000465,120]
[355822797,1741620639700,-151.0,0.000465,120]
[355822798,1741620639714,-151.0,0.000465,120]
[355822799,1741620639724,-151.0,0.000465,120]
[355822800,1741620639881,-2521.843251,0.000465,120]
[355822801,1741620639895,-2521.843251,0.000465,120]
[355822802,1741620639906,-151.639161,0.000465,120]
[355822803,1741620639918,-263.296551,0.000465,120]
[355822804,1741620639936,-263.296551,0.000465,120]
[355822805,1741620639947,-151.0,0.000465,120]
[355822806,1741620639958,-199.723795,0.000465,120]
[355822807,1741620639968,-199.723795,0.000465,120]
[355822808,1741620639979,-3825.14,0.00046575,120]
[355822809,1741620639990,-500.0,0.000467,2]
[355822810,1741620640000,-151.0,0.000467,21]
[355822811,1741620640011,-168.6647043,0.000467,120]
[355822812,1741620640022,-168.6647043,0.000467,120]
[355822813,1741620640032,-168.6647043,0.000467,120]
[355822814,1741620640042,-168.6647043,0.000467,120]
[355822815,1741620640052,-168.6647043,0.000467,120]
[355822816,1741620640063,-168.66,0.000467,120]
[355822817,1741620640073,-157.42039068,0.000467,120]
[355822819,1741620640084,-157.42039068,0.000467,120]
[355822821,1741620640094,-157.42039068,0.000467,120]
[355822823,1741620640105,-157.42039068,0.000467,120]
[355822825,1741620640116,-157.42039068,0.000467,120]
[355822826,1741620640126,-157.42039068,0.000467,120]
[355822827,1741620640136,-157.42039068,0.000467,120]
[355822828,1741620640147,-157.42039068,0.000467,120]
[355822829,1741620640158,-157.42039068,0.000467,120]
[355822831,1741620640168,-157.42039068,0.000467,120]
[355822833,1741620640183,-157.42039068,0.000467,120]
[355822835,1741620640194,-157.42039068,0.000467,120]
[355822836,1741620640204,-174.98039233,0.000467,120]
[355822837,1741620640215,-174.98,0.000467,120]
[355822838,1741620640225,-163.31503284,0.000467,120]
[355822839,1741620640235,-163.31503284,0.000467,120]
[355822840,1741620640245,-163.31503284,0.000467,120]
[355822842,1741620640255,-163.31503284,0.000467,120]
[355822844,1741620640265,-500.0,0.00046773,10]
[355822846,1741620640275,-500.95458269,0.00046773,3]
[355822848,1741620640285,-510.83299108,0.00046773,10]
[355822850,1741620640295,-500.0,0.00046773,10]
[355822852,1741620640305,-500.0,0.00046773,5]
[355822854,1741620640315,-260.77029428,0.00046773,10]
[355822856,1741620640325,-500.0,0.00046773,10]
[355822858,1741620640334,-502.28483876,0.00046773,5]
[355822860,1741620640344,-333.48446206,0.00046773,10]
[355822861,1741620640354,-500.0,0.00046773,10]
[355822862,1741620640364,-503.48654864,0.00046773,10]
[355822863,1741620640374,-160.7614657,0.00046773,10]
[355822864,1741620640384,-500.0,0.00046773,10]
[355822865,1741620640395,-208.01627,0.0004679,120]
[355822867,1741620640404,-208.01627,0.0004679,120]
[355822869,1741620640414,-151.0,0.0004679,120]
[355822870,1741620640427,-151.0,0.0004679,110]
[355822871,1741620640437,-151.0,0.0004679,120]
[355822872,1741620640446,-206.837105,0.0004679,120]
[355822873,1741620640455,-206.837105,0.0004679,120]
[355822874,1741620640465,-151.0,0.0004679,120]
[355822875,1741620640475,-457.453523,0.0004679,120]
[355822876,1741620640485,-151.0,0.0004679,120]
[355822877,1741620640495,-457.453523,0.0004679,120]
[355822878,1741620640504,-151.0,0.0004679,120]
[355822879,1741620640514,-151.0,0.0004679,120]
[355822880,1741620640524,-151.0,0.0004679,120]
[355822881,1741620640533,-2521.843251,0.0004679,120]
[355822882,1741620640543,-2521.843251,0.0004679,120]
[355822883,1741620640553,-74192.6138674,0.0004679,4]
[355822884,1741620640562,-3607.63653292,0.0004679,4]
[355822885,1741620640572,-263.296551,0.0004679,120]
[355822887,1741620640582,-263.296551,0.0004679,120]
[355822888,1741620640591,-151.0,0.0004679,120]
[355822889,1741620640602,-199.723795,0.0004679,120]
[355822890,1741620640612,-199.723795,0.0004679,120]
[355822891,1741620640622,-200000.0,0.000468,30]
[355822893,1741620640632,-151.0,0.000468,120]
[355822894,1741620640642,-208.01627,0.000468,120]
[355822895,1741620640651,-208.01627,0.000468,120]
[355822896,1741620640661,-151.0,0.000468,120]
[355822897,1741620640672,-151.0,0.000468,120]
[355822898,1741620640682,-151.0,0.000468,120]
[355822899,1741620640692,-100906.47222916,0.000468,30]
[355822900,1741620640703,-151.0,0.000468,120]
[355822901,1741620640715,-151.0,0.000468,110]
[355822902,1741620640724,-151.0,0.000468,120]
[355822903,1741620640734,-427.61,0.000468,30]
[355822904,1741620640745,-151.0,0.000468,120]
[355822905,1741620640755,-231.469801,0.000468,120]
[355822906,1741620640765,-151.0,0.000468,120]
[355822907,1741620640776,-151.0,0.000468,120]
[355822908,1741620640786,-206.837105,0.000468,120]
[355822909,1741620640797,-206.837105,0.000468,120]
[355822910,1741620640807,-206.837105,0.000468,120]
[355822911,1741620640817,-206.837105,0.000468,120]
[355822912,1741620640827,-151.0,0.000468,120]
[355822913,1741620640837,-151.0,0.000468,120]
[355822914,1741620640847,-151.0,0.000468,120]
[355822915,1741620640856,-231.759944,0.000468,120]
[355822916,1741620640867,-457.453523,0.000468,120]
[355822917,1741620640877,-151.0,0.000468,120]
[355822918,1741620640887,-151.0,0.000468,120]
[355822919,1741620640898,-457.453523,0.000468,120]
[355822920,1741620640907,-151.0,0.000468,120]
[355822921,1741620640917,-151.0,0.000468,120]
[355822922,1741620640931,-151.0,0.000468,120]
[355822923,1741620640942,-151.0,0.000468,120]
[355822924,1741620640952,-151.0,0.000468,120]
[355822925,1741620640963,-151.0,0.000468,120]
[355822926,1741620640974,-2521.843251,0.000468,120]
[355822927,1741620640985,-2521.843251,0.000468,120]
[355822928,1741620640995,-2521.843251,0.000468,120]
[355822929,1741620641005,-2521.843251,0.000468,120]
[355822930,1741620641016,-263.296551,0.000468,120]
[355822931,1741620641026,-263.296551,0.000468,120]
[355822932,1741620641036,-263.296551,0.000468,120]
[355822933,1741620641046,-263.296551,0.000468,120]
[355822934,1741620641056,-151.0,0.000468,120]
[355822935,1741620641067,-151.0,0.000468,120]
[355822936,1741620641077,-199.723795,0.000468,120]
[355822937,1741620641088,-199.723795,0.000468,120]
[355822938,1741620641099,-199.723795,0.000468,120]
[355822939,1741620641109,-199.723795,0.000468,120]
[355822940,1741620641119,-1000.0,0.00046979,10]
[355822941,1741620641130,-187.8958351,0.00047,120]
[355822942,1741620641140,-157.42039068,0.0004701,120]
[355822943,1741620641151,-92642.56594127,0.00047109,2]
[355822944,1741620641162,-3825.14,0.00047123,120]
[355822945,1741620641177,-157.42039068,0.00047654,120]
[355822946,1741620641189,-462.48854778,0.00047657,120]
[355822947,1741620641199,-3825.14,0.00047671,120]
[355822948,1741620641210,-1200.51490371,0.000478,120]
[355822949,1741620641220,-151.0,0.000478,28]
[355822950,1741620641230,-292.36772071,0.000478,120]
[355822951,1741620641240,-2441.52756535,0.000479,120]
[355822952,1741620641250,-151.02734414,0.00047973,10]
[355822953,1741620641261,-500.0,0.00047973,10]
[355822954,1741620641272,-500.0,0.00047973,10]
[355822955,1741620641282,-502.16338973,0.00047973,10]
[355822956,1741620641291,-499.35639846,0.00047973,10]
[355822957,1741620641302,-513.59064664,0.00047973,10]
[355822958,1741620641313,-500.0,0.00047973,10]
[355822959,1741620641323,-349.02122353,0.00047973,5]
[355822960,1741620641335,-500.0,0.00047973,10]
[355822961,1741620641345,-500.0,0.00047973,7]
[355822962,1741620641355,-508.02991586,0.00047973,10]
[355822963,1741620641365,-160.54363363,0.00047973,10]
[355822964,1741620641376,-500.0,0.00047973,10]
[355822965,1741620641387,-502.69296197,0.00047973,10]
[355822966,1741620641397,-303.67528419,0.00047973,10]
[355822967,1741620641406,-500.0,0.00047973,10]
[355822968,1741620641417,-503.86005574,0.00047973,10]
[355822969,1741620641434,-500.0,0.00047973,10]
[355822970,1741620641444,-394.29913328,0.00047973,10]
[355822971,1741620641454,-536.4177329,0.00047973,10]
[355822972,1741620641463,-600.0,0.00047973,10]
[355822973,1741620641472,-500.0,0.00047973,10]
[355822974,1741620641578,-500.0,0.00047973,10]
[355822975,1741620641602,-504.87518026,0.00047973,10]
[355822976,1741620641613,-500.0,0.00047973,10]
[355822977,1741620641623,-500.0,0.00047973,10]
[355822978,1741620641634,-500.0,0.00047973,10]
[355822979,1741620641644,-500.0,0.00047973,10]
[355822980,1741620641655,-502.118915,0.00047973,10]
[355822981,1741620641664,-10598.9448382,0.0004798,4]
[355822982,1741620641678,-515.37664756,0.0004798,4]
[355822983,1741620641687,-30000.0,0.0004799,8]
[355822984,1741620641695,-208.01627,0.0004799,120]
[355822985,1741620641707,-208.01627,0.0004799,120]
[355822986,1741620641716,-151.0,0.0004799,120]
[355822987,1741620641724,-151.0,0.0004799,110]
[355822988,1741620641732,-206.837105,0.0004799,120]
[355822989,1741620641744,-206.837105,0.0004799,120]
[355822990,1741620641753,-457.453523,0.0004799,120]
[355822991,1741620641766,-151.0,0.0004799,120]
[355822992,1741620641776,-457.453523,0.0004799,120]
[355822993,1741620641786,-151.0,0.0004799,120]
[355822994,1741620641796,-151.0,0.0004799,120]
[355822995,1741620641806,-151.0,0.0004799,120]
[355822996,1741620641816,-2521.843251,0.0004799,120]
[355822997,1741620641826,-2521.843251,0.0004799,120]
[355822998,1741620641835,-263.296551,0.0004799,120]
[355822999,1741620641846,-263.296551,0.0004799,120]
[355823000,1741620641856,-151.0,0.0004799,120]
[355823001,1741620641866,-199.723795,0.0004799,120]
[355823002,1741620641875,-199.723795,0.0004799,120]
[355823003,1741620641885,-2941.2283743,0.00048,120]
[355823004,1741620641895,-151.0,0.00048,22]
[355823005,1741620641905,-3845.82472886,0.00048,3]
[355823006,1741620641915,-1953.01413907,0.00048,120]
[355823007,1741620641929,-1101.54512701,0.00048,120]
[355823008,1741620641939,-22292.24957418,0.00048,120]
[355823009,1741620641949,-2000.0,0.0004801,120]
[355823010,1741620641958,-811.02198456,0.00048012,2]
[355823011,1741620641968,-3006.5509983,0.00048019,4]
[355823012,1741620641977,-10000.0,0.000482,8]
[355823013,1741620641987,-3825.14,0.00048219,120]
[355823014,1741620641997,-157.42,0.00048298,120]
[355823015,1741620642007,-158.66,0.00048298,120]
[355823016,1741620642017,-163.31,0.00048298,120]
[355823017,1741620642027,-151.0,0.000483,27]
[355823018,1741620642037,-811.02198456,0.00048303,2]
[355823019,1741620642047,-151.0,0.00048385,120]
[355823020,1741620642056,-151.0,0.00048385,120]
[355823021,1741620642066,-10598.9448382,0.00048388,4]
[355823022,1741620642076,-515.37664756,0.00048388,4]
[355823023,1741620642085,-77181.52304106,0.00048398,120]
[355823024,1741620642094,-151.0,0.000484,25]
[355823025,1741620642104,-540.47,0.000484,9]
[355823026,1741620642114,-503.2420298,0.00048473,10]
[355823027,1741620642123,-500.0,0.00048473,10]
[355823028,1741620642132,-611.61085525,0.00048473,10]
[355823029,1741620642142,-500.0,0.00048473,10]
[355823030,1741620642151,-502.860608,0.00048473,10]
[355823031,1741620642161,-208.01627,0.0004849,120]
[355823032,1741620642171,-208.01627,0.0004849,120]
[355823033,1741620642182,-151.0,0.0004849,110]
[355823034,1741620642192,-206.837105,0.0004849,120]
[355823035,1741620642201,-206.837105,0.0004849,120]
[355823036,1741620642212,-151.0,0.0004849,120]
[355823037,1741620642222,-457.453523,0.0004849,120]
[355823038,1741620642231,-457.453523,0.0004849,120]
[355823039,1741620642242,-219.277496,0.0004849,120]
[355823040,1741620642253,-151.0,0.0004849,120]
[355823041,1741620642263,-260.094586,0.0004849,120]
[355823042,1741620642272,-2521.843251,0.0004849,120]
[355823043,1741620642283,-2521.843251,0.0004849,120]
[355823044,1741620642293,-263.296551,0.0004849,120]
[355823045,1741620642303,-263.296551,0.0004849,120]
[355823046,1741620642313,-151.0,0.0004849,120]
[355823047,1741620642323,-199.723795,0.0004849,120]
[355823048,1741620642333,-199.723795,0.0004849,120]
[355823049,1741620642343,-30000.0,0.000485,8]
[355823050,1741620642352,-208.01627,0.000485,120]
[355823051,1741620642363,-208.01627,0.000485,120]
[355823052,1741620642374,-151.0,0.000485,110]
[355823053,1741620642385,-427.61,0.000485,30]
[355823054,1741620642395,-206.837105,0.000485,120]
[355823055,1741620642406,-206.837105,0.000485,120]
[355823056,1741620642415,-151.0,0.000485,120]
[355823057,1741620642428,-151.0,0.000485,21]
[355823058,1741620642437,-457.453523,0.000485,120]
[355823059,1741620642447,-151.0,0.000485,120]
[355823060,1741620642457,-457.453523,0.000485,120]
[355823061,1741620642468,-151.0,0.000485,120]
[355823062,1741620642479,-2521.843251,0.000485,120]
[355823063,1741620642489,-2521.843251,0.000485,120]
[355823064,1741620642499,-773.4556456,0.000485,120]
[355823065,1741620642509,-1052489.56314888,0.000485,120]
[355823066,1741620642519,-2246.94,0.000485,90]
[355823067,1741620642529,-263.296551,0.000485,120]
[355823068,1741620642539,-263.296548,0.000485,120]
[355823069,1741620642549,-151.0,0.000485,120]
[355823070,1741620642559,-199.723795,0.000485,120]
[355823071,1741620642569,-199.723795,0.000485,120]
[355823072,1741620642580,-179.42331514,0.00048571,39]
[355823073,1741620642590,-811.02198456,0.00048591,2]
[355823074,1741620642600,-1058.77897483,0.00048671,2]
[355823075,1741620642611,-151.0,0.0004869,120]
[355823077,1741620642620,-2521.843251,0.0004869,120]